Workbook

Sheet Zad__1 - zest hydrof Wilo
B1: ZZP.260.2.15.2023 | K1: Załącznik nr 3.1
A3: Wykonanie przeglądów serwisowych hydroforowych zestawów pompowych i przepompowni ścieków w obiektach MOSiR w latach 2022-2025
B5: Kosztorys ofertowy
A6: L.p. | B6: Nazwa / typ Układu / urządzenia | C6: Producent | D6: Lokalizacja | F6: Status urządzenia | G6: Harmonogram1) | H6: j.m. | I6: Ilość | J6: Częstotliwość usługi w okresie Umowy 2) | K6: Cena jednostkowa brutto | L6: Wartość brutto [zł]
I7: a | J7: b | K7: c | L7: a*b*c
A8: 1 | B8: 2 | C8: 3 | D8: 4 | E8: 5 | F8: 6 | G8: 7 | H8: 8 | I8: 9 | J8: 10 | K8: 11 | L8: 12
A9: 1. | B9: Hydroforowy zestaw pompowy: COR-2 MVIE 403-2G/VR-WMS.-EB nr fabr.: A/50316000-2 | C9: Wilo | D9: AQUA Lublin Al. Zygmuntowskie 4 | E9: podbasenie - kondygnacja -1 (w tym samym pomiwszczniu co COR-4) | F9: po gwarancji | G9: 1 - grudzień 2023 2 - grudzień 2024 3 - grudzień 2025 | H9: szt. | I9: 1 | J9: 3
A10: 2. | B10: Hydroforowy zestaw pompowy: COR-4 MVIE 803-2G/VR-WMS.-EB nr fabr.: A/50313594-1 | C10: Wilo | D10: AQUA Lublin Al. Zygmuntowskie 4 | E10: podbasenie - kondygnacja: -1 (w tym samym pomiwszczniu co COR-3) | F10: po gwarancji | G10: 1 - grudzień 2023 2 - grudzień 2024 3 - grudzień 2025 | H10: szt. | I10: 1 | J10: 3
A11: 3. | B11: Hydroforowy zestaw pompowy: COR 4 Helix VE1006/VR-WMS;2017w47;S/N 418/11/17;nr kat.2863822 | C11: Wilo | D11: ul. Kazimierza Wielkiego 8, Hala GLOBUS | E11: Wydzielone pomieszczenie w budynku technicznym - kondygnacja: parter | F11: po gwarancji | G11: 1 - czerwiec 2023 2 - czerwiec 2024 3 - czerwiec 2025 | H11: szt. | I11: 1 | J11: 3
A12: 4. | B12: Hydroforowy zestaw pompowy: COR-3 MVIE 806-2G/VR-P nr fabr.: 076/03/13 | C12: Wilo | D12: ul. Łabędzia 4 Centrum Sportowo-Rekreacyjne ŁABĘDZIA | E12: podbasenie (wydzielone pomieszczenie) - kondygnacja: -1 | F12: po gwarancji | G12: 1 - grudzień 2023 2 - grudzień 2024 3 - grudzień 2025 | H12: szt. | I12: 1 | J12: 3
J13: RAZEM BRUTTO:
B14: 1) TERMIN WYKONANIA USŁUGI:
B15: - maksymalny ustalony wg terminu poprzedniego serwisu – należy wykonać nie później niż podana data i wcześniej niż 14 dni przed, chyba że uzgodniono inaczej z Zamawiającym.
B16: 2) częstotliwość usług w zakresie umowy:
B17: - w tym przeglądy dodatkowe
I19: …....................................……..............................
I20: (Podpis i pieczęć imienna osób uprawnionych do składania oświadczeń woli Wykonawcy)

Sheet Zad__2 - zest hydr Grundfos
B1: ZZP.260.2.15.2023 | K1: Załącznik nr 3.2
A3: Wykonanie przeglądów serwisowych hydroforowych zestawów pompowych i przepompowni ścieków w obiektach MOSiR w latach 2022-2025
B5: Kosztorys ofertowy
A6: L.p. | B6: Nazwa / typ Układu / urządzenia | C6: Producent | D6: Lokalizacja | F6: Status urządzenia | G6: Harmonogram1) | H6: j.m. | I6: Ilość | J6: Częstotliwość usługi w okresie Umowy 2) | K6: Cena jednostkowa brutto | L6: Wartość brutto [zł]
I7: a | J7: b | K7: c | L7: a*b*c
A8: 1 | B8: 2 | C8: 3 | D8: 4 | E8: 5 | F8: 6 | G8: 7 | H8: 8 | I8: 9 | J8: 10 | K8: 11 | L8: 12
A9: 1. | B9: Hydroforowy zestaw pompowy: Hydro MPC-E 3 CRIE 15-1 | C9: Grundfos | D9: ul. Stadionowa 1 Arena Lublin | E9: Hydrofornia nr 1 i nr 2 – budynek stadionu - poziom „0” | F9: po gwarancji | G9: 1 – wrzesień 2023 2 – wrzesień 2024 3 – wrzesień 2025 | H9: szt. | I9: 2 | J9: 3
A10: 2. | B10: Hydroforowy zestaw pompowy: Hydro MPC-E 4 CRIE- 5-12 | C10: Grundfos | D10: ul. Stadionowa 1 Arena Lublin | E10: Hydrofornia podziemna – tereny zielone przy stadionie | F10: po gwarancji | G10: 1 – wrzesień 2023 2 – wrzesień 2024 3 – wrzesień 2025 | H10: szt. | I10: 1 | J10: 3
J11: RAZEM BRUTTO:
B12: 1) TERMIN WYKONANIA USŁUGI:
B13: - maksymalny ustalony wg terminu poprzedniego serwisu – należy wykonać nie później niż podana data i wcześniej niż 14 dni przed, chyba że uzgodniono inaczej z Zamawiającym.
B14: 2) częstotliwość usług w zakresie umowy:
B15: - w tym przeglądy dodatkowe
I17: …....................................……..............................
I18: (Podpis i pieczęć imienna osób uprawnionych do składania oświadczeń woli Wykonawcy)

Sheet Zad__3 - Przep Wilo
B1: ZZP.260.2.15.2023 | K1: Załącznik nr 3.3
A3: Wykonanie przeglądów serwisowych hydroforowych zestawów pompowych i przepompowni ścieków w obiektach MOSiR w latach 2022-2025
B5: Kosztorys ofertowy
A6: L.p. | B6: Nazwa / typ Układu / urządzenia | C6: Producent | D6: Lokalizacja | F6: Status urządzenia | G6: Harmonogram1) | H6: j.m. | I6: Ilość | J6: Częstotliwość usługi w okresie Umowy 2) | K6: Cena jednostkowa brutto | L6: Wartość brutto [zł]
I7: a | J7: b | K7: c | L7: a*b*c
A8: 1 | B8: 2 | C8: 3 | D8: 4 | E8: 5 | F8: 6 | G8: 7 | H8: 8 | I8: 9 | J8: 10 | K8: 11 | L8: 12
A9: 1. | B9: Przepompownia ścieków deszczowych PD1 Zbiornik żelbetowy: 5,0x5,0x3,96m Głębokość (wysokość od terenu do dna zbiornika) 8;0 [m] Pompy: Typ: REXA PRO C10DA-516 - szt. 2 nr ser. 650309220, 650309221 Szafa sterownicza: Nr ser. RZS/11/05/17/P 036/DS./09/2016/START LUBLIN PD1 | C9: Wilo | D9: Stadion Miejski (Żużlowy) Al. Zygmuntowskie 5 | E9: Wjazd główą bramą, na końcu drogi pożarowej. Plac przy wjeździe na tor od strony rzeki | F9: po gwarancji | G9: 1 - styczeń 2024 2 - grudzień 2024 3 – grudzień 2025 | H9: kpl | I9: 1 | J9: 3
A10: 1. | B10: + wymiana ojelu w pompach | G10: 1 - styczeń 2024 2 - grudzień 2025 | H10: kpl | I10: 1 | J10: 2
A11: 2. | B11: Przepompownia ścieków deszczowych PD2 Zbiornik żelbetowy: 14,065,0x2,5m Głębokość (wysokość od terenu do dna zbiornika)5,3 [m] Pompy: Typ: REXA PRO C10DA-516 - szt. 2 nr ser. SS LUB PIŁ22, SS LUB PIŁ22 1 Szafa sterownicza: Nr ser. RZS/11/05/17/P0 037/DS./09/2016/START LUBLIN PD2 | C11: Wilo | D11: Stadion Lekkoatletyczny (Start) Al. Piłsudskiego 22 | E11: Wjazd główą bramą, na końcu drogi pożarowej. Przy murze rozgraniczającym stadiony | F11: po gwarancji | G11: 1 - styczeń 2024 2 - grudzień 2024 3 - grudzień 2025 | H11: kpl | I11: 1 | J11: 3
A12: 2. | B12: + wymiana ojelu w pompach | G12: 1 - styczeń 2024 2 - grudzień 2025 | H12: kpl | I12: 1 | J12: 2
A13: 3. | B13: Przepompownia ścieków sanitarnych PS Pompy: Typ: PRO REXA V06 DA-623 - szt. 2 nr ser. 650302669, 650302670 Szafa sterownicza: Nr ser. RZS/10/05/17/SP 035/DS./09/2016/START LUBLIN PS | C13: Wilo | D13: Stadion Lekkoatletyczny (Start) Al. Piłsudskiego 22 | E13: Wjazd główą bramą, po lewej stronie przy ogrodzeniu od Al.. Pisudskiego 22 | F13: po gwarancji | G13: 1 - styczeń 2024 2 - grudzień 2024 3 - grudzień 2025 | H13: kpl. | I13: 1 | J13: 3
A14: 3. | B14: + wymiana ojelu w pompach | G14: 1 - styczeń 2024 2 - grudzień 2025 | H14: kpl | I14: 1 | J14: 2
J15: RAZEM BRUTTO:
B16: 1) TERMIN WYKONANIA USŁUGI:
B17: - maksymalny ustalony wg terminu poprzedniego serwisu – należy wykonać nie później niż podana data i wcześniej niż 14 dni przed, chyba że uzgodniono inaczej z Zamawiającym.
B18: 2) częstotliwość usług w zakresie umowy:
B19: - w tym przeglądy dodatkowe
I21: …....................................……..............................
I22: (Podpis i pieczęć imienna osób uprawnionych do składania oświadczeń woli Wykonawcy)

Sheet Zad__4 - Przep Grundfos
B1: ZZP.260.2.15.2023 | K1: Załącznik nr 3.4
A3: Wykonanie przeglądów serwisowych hydroforowych zestawów pompowych i przepompowni ścieków w obiektach MOSiR w latach 2022-2025
B5: Kosztorys ofertowy
A6: L.p. | B6: Nazwa / typ Układu / urządzenia | C6: Producent | D6: Lokalizacja | F6: Status urządzenia | G6: Harmonogram1) | H6: j.m. | I6: Ilość | J6: Częstotliwość usługi w okresie Umowy 2) | K6: Cena jednostkowa brutto | L6: Wartość brutto [zł]
I7: a | J7: b | K7: c | L7: a*b*c
A8: 1 | B8: 2 | C8: 3 | D8: 4 | E8: 5 | F8: 6 | G8: 7 | H8: 8 | I8: 9 | J8: 10 | K8: 11 | L8: 12
A9: 1. | B9: Pompownia EPS-PD - pompa zatapialna Grundfos SE1.100.100.40.4.51D – 3 szt. - sonda hydrostatyczna SG 25S – 1 szt. - wyłączniki pływakowe – 3 szt. - szafa sterownicza – 1 szt. | C9: Grundfos | D9: ul. Stadionowa 1 Arena Lublin | E9: Pompownia wód deszczowych – tereny zielone przy stadionie | F9: po gwarancji | G9: 1 - wrzesień 2023 2 - wrzesień 2024 3 – wrzesień 2025 | H9: kpl | I9: 1 | J9: 3
A10: 1. | B10: + wymiana ojelu w pompach | G10: 1 - wrzesień 2023 2 - wrzesień 2024 3 – wrzesień 2025 | H10: kpl | I10: 1 | J10: 3
A11: 2. | B11: Pompownia wody deszczowej z odwodnienia dachu - pompa zatapialna Grundfos SE1.80.80.40.A.4.51D.B.Z – 1 szt. - wyłączniki pływakowe – 1 szt. | C11: Grundfos | D11: ul. Stadionowa 1 Arena Lublin | E11: Pompownia wód retencyjnych – tereny zielone przy stadionie | F11: po gwarancji | G11: 1 - wrzesień 2023 2 - wrzesień 2024 3 – wrzesień 2025 | H11: szt. | I11: 1 | J11: 3
A12: 2. | B12: + wymiana ojelu w pompach | G12: 1 - wrzesień 2023 2 - wrzesień 2024 3 – wrzesień 2025 | H12: kpl | I12: 1 | J12: 3
J13: RAZEM BRUTTO:
B14: 1) TERMIN WYKONANIA USŁUGI:
B15: - maksymalny ustalony wg terminu poprzedniego serwisu – należy wykonać nie później niż podana data i wcześniej niż 14 dni przed, chyba że uzgodniono inaczej z Zamawiającym.
B16: 2) częstotliwość usług w zakresie umowy:
B17: - w tym przeglądy dodatkowe
I19: …....................................……..............................
I20: (Podpis i pieczęć imienna osób uprawnionych do składania oświadczeń woli Wykonawcy)

Sheet MPK (hidden)
B2: Kwota na okres 2 lat – budżet 2023: | C2: =SUM(C3:C4) ->  | D2: =SUM(D3:D4) ->  | E2: =SUM(E3:E4) ->  | F2: =SUM(F3:F4) ->  | G2: =SUM(C2:F2) ->  | H2: =G2-'[1]Formularz cenowy'!E17 ->  | I2: ='[1]Zestawienie ilościowe i harmono'!Z10-G2 -> 
B3: Kwota na okres 1 roku – budżet 2023: | C3: =SUM(C13:C31) ->  | D3: =SUM(D13:D31) ->  | E3: =SUM(E13:E31) ->  | F3: =SUM(F13:F31) ->  | G3: =SUM(C3:F3) -> 
B4: Kwota na okres 1 roku – budżet 2024: | C4: =SUM(C33:C51) ->  | D4: =SUM(D33:D51) ->  | E4: =SUM(E33:E51) ->  | F4: =SUM(F33:F51) ->  | G4: =SUM(C4:F4) -> 
B5: Kwota na okres 1 roku – budżet 2025: | C5: =SUM(C53:C71) ->  | D5: =SUM(D53:D71) ->  | E5: =SUM(E53:E71) ->  | F5: =SUM(F53:F71) ->  | G5: =SUM(C5:F5) -> 
C7: Dział | D7: Dział | E7: Dział | F7: Dział
C8: MBS | D8: MWR | E8: MHS | F8: AOG (Berlin)
A9: Nr MPK | B9: Nazwa MPK | C9: ='[1]Zestawienie ilościowe i harmono'!W30 -> Maciej Wątróbka | D9: Jarosław Kamiński | E9: ='[1]Zestawienie ilościowe i harmono'!W12 -> Izabela Czernicka-Białowąs | F9: Edyta Danielczuk | G9: ŁĄCZNIE
B10: SUMA: | C10: =SUM(C13:C51) ->  | D10: =SUM(D13:D51) ->  | E10: =SUM(E13:E51) ->  | F10: =SUM(F13:F51) ->  | G10: =SUM(G13:G51) -> 
B11: Pozostało: | C11: =C2-SUM(C13:C51) ->  | D11: =D2-SUM(D13:D51) ->  | E11: =E2-SUM(E13:E51) ->  | F11: =F2-SUM(F13:F51) ->  | G11: =G2-SUM(G13:G51) -> 
A12: 2023 | C12: 1 | D12: 2 | E12: 3 | F12: 4 | G12: 1
A13: 101 | B13: =VLOOKUP($A13,'[1]MPK-2023'!$A$3:$F$104,2,0) -> Zygmuntowskie - hala im. Z. Niedzieli | E13: =SUMIF('[1]Zestawienie ilościowe i harmono'!$X$12:$X$30,[1]MPKi!$A12,'[1]Zestawienie ilościowe i harmono'!$Z$12:$Z$30) ->  | G13: =SUM(C13:F13) ->  | I13: =VLOOKUP(A13,'[1]Zestawienie ilościowe i harmono'!$X$12:$AJ$30,3,0) -> 381.27 | J13: =G13-I13 ->  | K13: =SUMIF('[1]Zestawienie ilościowe i harmono'!$X$12:$X$30,[1]MPKi!$A12,'[1]Zestawienie ilościowe i harmono'!$Z$12:$Z$30) ->  | L13: =IF('[1]Zestawienie ilościowe i harmono'!U12=[1]MPKi!C$7,[1]MPKi!J12,0) -> 0 | N13: 101
A14: 104 | B14: =VLOOKUP($A14,'[1]MPK-2023'!$A$3:$F$104,2,0) -> Zygmuntowskie - biura - pod wynajem | E14: =SUMIF('[1]Zestawienie ilościowe i harmono'!$X$12:$X$30,[1]MPKi!$A13,'[1]Zestawienie ilościowe i harmono'!$Z$12:$Z$30) ->  | I14: =VLOOKUP(A14,'[1]Zestawienie ilościowe i harmono'!$X$12:$AJ$30,3,0) -> 215.92 | K14: =SUMIF('[1]Zestawienie ilościowe i harmono'!$X$12:$X$30,[1]MPKi!$A13,'[1]Zestawienie ilościowe i harmono'!$Z$12:$Z$30) ->  | L14: =IF('[1]Zestawienie ilościowe i harmono'!U13=[1]MPKi!C$7,[1]MPKi!J13,0) -> 0 | N14: 110
A15: 110 | B15: =VLOOKUP($A15,'[1]MPK-2023'!$A$3:$F$104,2,0) -> Zygmuntowskie - pływalnia ( H2O) | D15: =SUMIF('[1]Zestawienie ilościowe i harmono'!$X$12:$X$30,[1]MPKi!$A14,'[1]Zestawienie ilościowe i harmono'!$Z$12:$Z$30) ->  | I15: =VLOOKUP(A15,'[1]Zestawienie ilościowe i harmono'!$X$12:$AJ$30,3,0) -> 210.98 | K15: =SUMIF('[1]Zestawienie ilościowe i harmono'!$X$12:$X$30,[1]MPKi!$A14,'[1]Zestawienie ilościowe i harmono'!$Z$12:$Z$30) ->  | L15: =IF('[1]Zestawienie ilościowe i harmono'!U14=[1]MPKi!C$7,[1]MPKi!J14,0) -> 0 | N15: 104
A16: 139 | B16: =VLOOKUP($A16,'[1]MPK-2023'!$A$3:$F$104,2,0) -> CSR Łabędzia - wspólne | D16: =SUMIF('[1]Zestawienie ilościowe i harmono'!$X$12:$X$30,[1]MPKi!$A15,'[1]Zestawienie ilościowe i harmono'!$Z$12:$Z$30) ->  | I16: =VLOOKUP(A16,'[1]Zestawienie ilościowe i harmono'!$X$12:$AJ$30,3,0) -> 1093 | K16: =SUMIF('[1]Zestawienie ilościowe i harmono'!$X$12:$X$30,[1]MPKi!$A15,'[1]Zestawienie ilościowe i harmono'!$Z$12:$Z$30) ->  | L16: =IF('[1]Zestawienie ilościowe i harmono'!U15=[1]MPKi!C$7,[1]MPKi!J15,0) -> 0 | N16: 140
A17: 140 | B17: =VLOOKUP($A17,'[1]MPK-2023'!$A$3:$F$104,2,0) -> Icemania | E17: =SUMIF('[1]Zestawienie ilościowe i harmono'!$X$12:$X$30,[1]MPKi!$A16,'[1]Zestawienie ilościowe i harmono'!$Z$12:$Z$30) ->  | I17: =VLOOKUP(A17,'[1]Zestawienie ilościowe i harmono'!$X$12:$AJ$30,3,0) -> 275.85 | K17: =SUMIF('[1]Zestawienie ilościowe i harmono'!$X$12:$X$30,[1]MPKi!$A16,'[1]Zestawienie ilościowe i harmono'!$Z$12:$Z$30) ->  | L17: =IF('[1]Zestawienie ilościowe i harmono'!U16=[1]MPKi!C$7,[1]MPKi!J16,0) -> 0 | N17: 157
A18: 141 | B18: =VLOOKUP($A18,'[1]MPK-2023'!$A$3:$F$104,2,0) -> Miasteczko Ruchu Drogowego | E18: =SUMIF('[1]Zestawienie ilościowe i harmono'!$X$12:$X$30,[1]MPKi!$A17,'[1]Zestawienie ilościowe i harmono'!$Z$12:$Z$30) ->  | I18: =VLOOKUP(A18,'[1]Zestawienie ilościowe i harmono'!$X$12:$AJ$30,3,0) -> 33.54 | K18: =SUMIF('[1]Zestawienie ilościowe i harmono'!$X$12:$X$30,[1]MPKi!$A17,'[1]Zestawienie ilościowe i harmono'!$Z$12:$Z$30) ->  | L18: =IF('[1]Zestawienie ilościowe i harmono'!U17=[1]MPKi!C$7,[1]MPKi!J17,0) -> 0 | N18: 141
A19: 157 | B19: =VLOOKUP($A19,'[1]MPK-2023'!$A$3:$F$104,2,0) -> Aqua Lublin - wspólne | D19: =SUMIF('[1]Zestawienie ilościowe i harmono'!$X$12:$X$30,[1]MPKi!$A18,'[1]Zestawienie ilościowe i harmono'!$Z$12:$Z$30) ->  | I19: =VLOOKUP(A19,'[1]Zestawienie ilościowe i harmono'!$X$12:$AJ$30,3,0) -> 1401.73 | K19: =SUMIF('[1]Zestawienie ilościowe i harmono'!$X$12:$X$30,[1]MPKi!$A18,'[1]Zestawienie ilościowe i harmono'!$Z$12:$Z$30) ->  | L19: =IF('[1]Zestawienie ilościowe i harmono'!U18=[1]MPKi!C$7,[1]MPKi!J18,0) -> 0 | N19: 201
A20: 201 | B20: =VLOOKUP($A20,'[1]MPK-2023'!$A$3:$F$104,2,0) -> Globus - hala | E20: =SUMIF('[1]Zestawienie ilościowe i harmono'!$X$12:$X$30,[1]MPKi!$A19,'[1]Zestawienie ilościowe i harmono'!$Z$12:$Z$30) ->  | I20: =VLOOKUP(A20,'[1]Zestawienie ilościowe i harmono'!$X$12:$AJ$30,3,0) -> 3188 | K20: =SUMIF('[1]Zestawienie ilościowe i harmono'!$X$12:$X$30,[1]MPKi!$A19,'[1]Zestawienie ilościowe i harmono'!$Z$12:$Z$30) ->  | L20: =IF('[1]Zestawienie ilościowe i harmono'!U19=[1]MPKi!C$7,[1]MPKi!J19,0) -> 0 | N20: 290
A21: 290 | B21: =VLOOKUP($A21,'[1]MPK-2023'!$A$3:$F$104,2,0) -> Globus - wspólne | E21: =SUMIF('[1]Zestawienie ilościowe i harmono'!$X$12:$X$30,[1]MPKi!$A20,'[1]Zestawienie ilościowe i harmono'!$Z$12:$Z$30) ->  | I21: =VLOOKUP(A21,'[1]Zestawienie ilościowe i harmono'!$X$12:$AJ$30,3,0) -> 72.02 | K21: =SUMIF('[1]Zestawienie ilościowe i harmono'!$X$12:$X$30,[1]MPKi!$A20,'[1]Zestawienie ilościowe i harmono'!$Z$12:$Z$30) ->  | L21: =IF('[1]Zestawienie ilościowe i harmono'!U20=[1]MPKi!C$7,[1]MPKi!J20,0) -> 0 | N21: 910
A22: 301 | B22: =VLOOKUP($A22,'[1]MPK-2023'!$A$3:$F$104,2,0) -> Zalew - budynki | D22: =SUMIF('[1]Zestawienie ilościowe i harmono'!$X$12:$X$30,[1]MPKi!$A21,'[1]Zestawienie ilościowe i harmono'!$Z$12:$Z$30) ->  | G22: =SUM(C22:E22) ->  | I22: =VLOOKUP(A22,'[1]Zestawienie ilościowe i harmono'!$X$12:$AJ$30,3,0) -> 165.35 | K22: =SUMIF('[1]Zestawienie ilościowe i harmono'!$X$12:$X$30,[1]MPKi!$A21,'[1]Zestawienie ilościowe i harmono'!$Z$12:$Z$30) ->  | L22: =IF('[1]Zestawienie ilościowe i harmono'!U21=[1]MPKi!C$7,[1]MPKi!J21,0) -> 0 | N22: 301
A23: 320 | B23: =VLOOKUP($A23,'[1]MPK-2023'!$A$3:$F$104,2,0) -> SW - baseny,teren eventowy | D23: =SUMIF('[1]Zestawienie ilościowe i harmono'!$X$12:$X$30,[1]MPKi!$A22,'[1]Zestawienie ilościowe i harmono'!$Z$12:$Z$30) ->  | G23: =SUM(C23:E23) ->  | I23: =VLOOKUP(A23,'[1]Zestawienie ilościowe i harmono'!$X$12:$AJ$30,3,0) -> 112.57 | K23: =SUMIF('[1]Zestawienie ilościowe i harmono'!$X$12:$X$30,[1]MPKi!$A22,'[1]Zestawienie ilościowe i harmono'!$Z$12:$Z$30) ->  | L23: =IF('[1]Zestawienie ilościowe i harmono'!U22=[1]MPKi!C$7,[1]MPKi!J22,0) -> 0 | N23: 320
A24: 321 | B24: =VLOOKUP($A24,'[1]MPK-2023'!$A$3:$F$104,2,0) -> SW - wypożyczalnia | D24: =SUMIF('[1]Zestawienie ilościowe i harmono'!$X$12:$X$30,[1]MPKi!$A23,'[1]Zestawienie ilościowe i harmono'!$Z$12:$Z$30) ->  | G24: =SUM(C24:E24) -> 
A25: 401 | B25: =VLOOKUP($A25,'[1]MPK-2023'!$A$3:$F$104,2,0) -> Zygmuntowskie Stadion i Biurowiec | C25: =SUMIF('[1]Zestawienie ilościowe i harmono'!$X$12:$X$30,[1]MPKi!$A24,'[1]Zestawienie ilościowe i harmono'!$Z$12:$Z$30) ->  | G25: =SUM(C25:F25) ->  | I25: =VLOOKUP(A25,'[1]Zestawienie ilościowe i harmono'!$X$12:$AJ$30,3,0) -> 405.31 | J25: =G25-I25 ->  | K25: =SUMIF('[1]Zestawienie ilościowe i harmono'!$X$12:$X$30,[1]MPKi!$A24,'[1]Zestawienie ilościowe i harmono'!$Z$12:$Z$30) ->  | L25: =IF('[1]Zestawienie ilościowe i harmono'!U24=[1]MPKi!C$7,[1]MPKi!J24,0) -> 0 | N25: 410
A26: 403 | B26: =VLOOKUP($A26,'[1]MPK-2023'!$A$3:$F$104,2,0) -> Piłsudskiego - sala gimnastyczna | C26: =SUMIF('[1]Zestawienie ilościowe i harmono'!$X$12:$X$30,[1]MPKi!$A25,'[1]Zestawienie ilościowe i harmono'!$Z$12:$Z$30) ->  | I26: =VLOOKUP(A26,'[1]Zestawienie ilościowe i harmono'!$X$12:$AJ$30,3,0) -> 220.66 | K26: =SUMIF('[1]Zestawienie ilościowe i harmono'!$X$12:$X$30,[1]MPKi!$A25,'[1]Zestawienie ilościowe i harmono'!$Z$12:$Z$30) ->  | L26: =IF('[1]Zestawienie ilościowe i harmono'!U25=[1]MPKi!C$7,[1]MPKi!J25,0) -> 0 | N26: 421
A27: 405 | B27: =VLOOKUP($A27,'[1]MPK-2023'!$A$3:$F$104,2,0) -> Piłsudskiego - stadion lekkoatletyczny | C27: =SUMIF('[1]Zestawienie ilościowe i harmono'!$X$12:$X$30,[1]MPKi!$A26,'[1]Zestawienie ilościowe i harmono'!$Z$12:$Z$30) ->  | I27: =VLOOKUP(A27,'[1]Zestawienie ilościowe i harmono'!$X$12:$AJ$30,3,0) -> 513.98 | K27: =SUMIF('[1]Zestawienie ilościowe i harmono'!$X$12:$X$30,[1]MPKi!$A26,'[1]Zestawienie ilościowe i harmono'!$Z$12:$Z$30) ->  | L27: =IF('[1]Zestawienie ilościowe i harmono'!U26=[1]MPKi!C$7,[1]MPKi!J26,0) -> 0 | N27: 401
A28: 410 | B28: =VLOOKUP($A28,'[1]MPK-2023'!$A$3:$F$104,2,0) -> Kresowa - stadion | C28: =SUMIF('[1]Zestawienie ilościowe i harmono'!$X$12:$X$30,[1]MPKi!$A27,'[1]Zestawienie ilościowe i harmono'!$Z$12:$Z$30) ->  | I28: =VLOOKUP(A28,'[1]Zestawienie ilościowe i harmono'!$X$12:$AJ$30,3,0) -> 40.69 | K28: =SUMIF('[1]Zestawienie ilościowe i harmono'!$X$12:$X$30,[1]MPKi!$A27,'[1]Zestawienie ilościowe i harmono'!$Z$12:$Z$30) ->  | L28: =IF('[1]Zestawienie ilościowe i harmono'!U27=[1]MPKi!C$7,[1]MPKi!J27,0) -> 0 | N28: 403
A29: 421 | B29: =VLOOKUP($A29,'[1]MPK-2023'!$A$3:$F$104,2,0) -> Lublinianka - biura | E29: =SUMIF('[1]Zestawienie ilościowe i harmono'!$X$12:$X$30,[1]MPKi!$A28,'[1]Zestawienie ilościowe i harmono'!$Z$12:$Z$30) ->  | I29: =VLOOKUP(A29,'[1]Zestawienie ilościowe i harmono'!$X$12:$AJ$30,3,0) -> 259.34 | K29: =SUMIF('[1]Zestawienie ilościowe i harmono'!$X$12:$X$30,[1]MPKi!$A28,'[1]Zestawienie ilościowe i harmono'!$Z$12:$Z$30) ->  | L29: =IF('[1]Zestawienie ilościowe i harmono'!U28=[1]MPKi!C$7,[1]MPKi!J28,0) -> 0 | N29: 405
A30: 590 | B30: =VLOOKUP($A30,'[1]MPK-2023'!$A$3:$F$104,2,0) -> Arena Lublin - wspólne | C30: =SUMIF('[1]Zestawienie ilościowe i harmono'!$X$12:$X$30,[1]MPKi!$A29,'[1]Zestawienie ilościowe i harmono'!$Z$12:$Z$30) ->  | I30: =VLOOKUP(A30,'[1]Zestawienie ilościowe i harmono'!$X$12:$AJ$30,3,0) -> 1856.74 | K30: =SUMIF('[1]Zestawienie ilościowe i harmono'!$X$12:$X$30,[1]MPKi!$A29,'[1]Zestawienie ilościowe i harmono'!$Z$12:$Z$30) ->  | L30: =IF('[1]Zestawienie ilościowe i harmono'!U29=[1]MPKi!C$7,[1]MPKi!J29,0) -> 0 | N30: 139
A31: 910 | B31: =VLOOKUP($A31,'[1]MPK-2023'!$A$3:$F$104,2,0) -> Berlin | F31: =SUMIF('[1]Zestawienie ilościowe i harmono'!$X$12:$X$30,[1]MPKi!$A30,'[1]Zestawienie ilościowe i harmono'!$Z$12:$Z$30) ->  | I31: =VLOOKUP(A31,'[1]Zestawienie ilościowe i harmono'!$X$12:$AJ$30,3,0) -> 196.68 | K31: =SUMIF('[1]Zestawienie ilościowe i harmono'!$X$12:$X$30,[1]MPKi!$A30,'[1]Zestawienie ilościowe i harmono'!$Z$12:$Z$30) ->  | L31: =IF('[1]Zestawienie ilościowe i harmono'!U30=[1]MPKi!C$7,[1]MPKi!J30,0) -> 0 | N31: 590
A32: =A12+1 -> 2024
A33: =A13 -> 101 | B33: =VLOOKUP($A33,'[1]MPK-2023'!$A$3:$F$104,2,0) -> Zygmuntowskie - hala im. Z. Niedzieli | E33: =SUMIF('[1]Zestawienie ilościowe i harmono'!$X$32:$X$50,[1]MPKi!$A32,'[1]Zestawienie ilościowe i harmono'!$Z$32:$Z$50) ->  | G33: =SUM(C33:F33) ->  | I33: =VLOOKUP(A33,'[1]Zestawienie ilościowe i harmono'!$X$32:$AJ$50,3,0) -> 381.27 | J33: =G33-I33 ->  | K33: =SUMIF('[1]Zestawienie ilościowe i harmono'!$X$32:$X$50,[1]MPKi!$A32,'[1]Zestawienie ilościowe i harmono'!$Z$32:$Z$50) ->  | L33: =IF('[1]Zestawienie ilościowe i harmono'!U32=[1]MPKi!C$7,[1]MPKi!J32,0) -> 0
A34: 104 | B34: =VLOOKUP($A34,'[1]MPK-2023'!$A$3:$F$104,2,0) -> Zygmuntowskie - biura - pod wynajem | E34: =SUMIF('[1]Zestawienie ilościowe i harmono'!$X$32:$X$50,[1]MPKi!$A33,'[1]Zestawienie ilościowe i harmono'!$Z$32:$Z$50) ->  | I34: =VLOOKUP(A34,'[1]Zestawienie ilościowe i harmono'!$X$32:$AJ$50,3,0) -> 215.92 | K34: =SUMIF('[1]Zestawienie ilościowe i harmono'!$X$32:$X$50,[1]MPKi!$A33,'[1]Zestawienie ilościowe i harmono'!$Z$32:$Z$50) ->  | L34: =IF('[1]Zestawienie ilościowe i harmono'!U33=[1]MPKi!C$7,[1]MPKi!J33,0) -> 0
A35: 110 | B35: =VLOOKUP($A35,'[1]MPK-2023'!$A$3:$F$104,2,0) -> Zygmuntowskie - pływalnia ( H2O) | D35: =SUMIF('[1]Zestawienie ilościowe i harmono'!$X$32:$X$50,[1]MPKi!$A34,'[1]Zestawienie ilościowe i harmono'!$Z$32:$Z$50) ->  | I35: =VLOOKUP(A35,'[1]Zestawienie ilościowe i harmono'!$X$32:$AJ$50,3,0) -> 210.98 | K35: =SUMIF('[1]Zestawienie ilościowe i harmono'!$X$32:$X$50,[1]MPKi!$A34,'[1]Zestawienie ilościowe i harmono'!$Z$32:$Z$50) ->  | L35: =IF('[1]Zestawienie ilościowe i harmono'!U34=[1]MPKi!C$7,[1]MPKi!J34,0) -> 0
A36: 139 | B36: =VLOOKUP($A36,'[1]MPK-2023'!$A$3:$F$104,2,0) -> CSR Łabędzia - wspólne | D36: =SUMIF('[1]Zestawienie ilościowe i harmono'!$X$32:$X$50,[1]MPKi!$A35,'[1]Zestawienie ilościowe i harmono'!$Z$32:$Z$50) ->  | I36: =VLOOKUP(A36,'[1]Zestawienie ilościowe i harmono'!$X$32:$AJ$50,3,0) -> 624.09 | K36: =SUMIF('[1]Zestawienie ilościowe i harmono'!$X$32:$X$50,[1]MPKi!$A35,'[1]Zestawienie ilościowe i harmono'!$Z$32:$Z$50) ->  | L36: =IF('[1]Zestawienie ilościowe i harmono'!U35=[1]MPKi!C$7,[1]MPKi!J35,0) -> 0
A37: 140 | B37: =VLOOKUP($A37,'[1]MPK-2023'!$A$3:$F$104,2,0) -> Icemania | E37: =SUMIF('[1]Zestawienie ilościowe i harmono'!$X$32:$X$50,[1]MPKi!$A36,'[1]Zestawienie ilościowe i harmono'!$Z$32:$Z$50) ->  | I37: =VLOOKUP(A37,'[1]Zestawienie ilościowe i harmono'!$X$32:$AJ$50,3,0) -> 528.34 | K37: =SUMIF('[1]Zestawienie ilościowe i harmono'!$X$32:$X$50,[1]MPKi!$A36,'[1]Zestawienie ilościowe i harmono'!$Z$32:$Z$50) ->  | L37: =IF('[1]Zestawienie ilościowe i harmono'!U36=[1]MPKi!C$7,[1]MPKi!J36,0) -> 0
A38: 141 | B38: =VLOOKUP($A38,'[1]MPK-2023'!$A$3:$F$104,2,0) -> Miasteczko Ruchu Drogowego | E38: =SUMIF('[1]Zestawienie ilościowe i harmono'!$X$32:$X$50,[1]MPKi!$A37,'[1]Zestawienie ilościowe i harmono'!$Z$32:$Z$50) ->  | I38: =VLOOKUP(A38,'[1]Zestawienie ilościowe i harmono'!$X$32:$AJ$50,3,0) -> 33.54 | K38: =SUMIF('[1]Zestawienie ilościowe i harmono'!$X$32:$X$50,[1]MPKi!$A37,'[1]Zestawienie ilościowe i harmono'!$Z$32:$Z$50) ->  | L38: =IF('[1]Zestawienie ilościowe i harmono'!U37=[1]MPKi!C$7,[1]MPKi!J37,0) -> 0
A39: 157 | B39: =VLOOKUP($A39,'[1]MPK-2023'!$A$3:$F$104,2,0) -> Aqua Lublin - wspólne | D39: =SUMIF('[1]Zestawienie ilościowe i harmono'!$X$32:$X$50,[1]MPKi!$A38,'[1]Zestawienie ilościowe i harmono'!$Z$32:$Z$50) ->  | I39: =VLOOKUP(A39,'[1]Zestawienie ilościowe i harmono'!$X$32:$AJ$50,3,0) -> 1401.73 | K39: =SUMIF('[1]Zestawienie ilościowe i harmono'!$X$32:$X$50,[1]MPKi!$A38,'[1]Zestawienie ilościowe i harmono'!$Z$32:$Z$50) ->  | L39: =IF('[1]Zestawienie ilościowe i harmono'!U38=[1]MPKi!C$7,[1]MPKi!J38,0) -> 0
A40: 201 | B40: =VLOOKUP($A40,'[1]MPK-2023'!$A$3:$F$104,2,0) -> Globus - hala | E40: =SUMIF('[1]Zestawienie ilościowe i harmono'!$X$32:$X$50,[1]MPKi!$A39,'[1]Zestawienie ilościowe i harmono'!$Z$32:$Z$50) ->  | I40: =VLOOKUP(A40,'[1]Zestawienie ilościowe i harmono'!$X$32:$AJ$50,3,0) -> 3079.79 | K40: =SUMIF('[1]Zestawienie ilościowe i harmono'!$X$32:$X$50,[1]MPKi!$A39,'[1]Zestawienie ilościowe i harmono'!$Z$32:$Z$50) ->  | L40: =IF('[1]Zestawienie ilościowe i harmono'!U39=[1]MPKi!C$7,[1]MPKi!J39,0) -> 0
A41: 290 | B41: =VLOOKUP($A41,'[1]MPK-2023'!$A$3:$F$104,2,0) -> Globus - wspólne | E41: =SUMIF('[1]Zestawienie ilościowe i harmono'!$X$32:$X$50,[1]MPKi!$A40,'[1]Zestawienie ilościowe i harmono'!$Z$32:$Z$50) ->  | I41: =VLOOKUP(A41,'[1]Zestawienie ilościowe i harmono'!$X$32:$AJ$50,3,0) -> 72.02 | K41: =SUMIF('[1]Zestawienie ilościowe i harmono'!$X$32:$X$50,[1]MPKi!$A40,'[1]Zestawienie ilościowe i harmono'!$Z$32:$Z$50) ->  | L41: =IF('[1]Zestawienie ilościowe i harmono'!U40=[1]MPKi!C$7,[1]MPKi!J40,0) -> 0
A42: 301 | B42: =VLOOKUP($A42,'[1]MPK-2023'!$A$3:$F$104,2,0) -> Zalew - budynki | D42: =SUMIF('[1]Zestawienie ilościowe i harmono'!$X$32:$X$50,[1]MPKi!$A41,'[1]Zestawienie ilościowe i harmono'!$Z$32:$Z$50) ->  | G42: =SUM(C42:E42) ->  | I42: =VLOOKUP(A42,'[1]Zestawienie ilościowe i harmono'!$X$32:$AJ$50,3,0) -> 165.35 | K42: =SUMIF('[1]Zestawienie ilościowe i harmono'!$X$32:$X$50,[1]MPKi!$A41,'[1]Zestawienie ilościowe i harmono'!$Z$32:$Z$50) ->  | L42: =IF('[1]Zestawienie ilościowe i harmono'!U41=[1]MPKi!C$7,[1]MPKi!J41,0) -> 0
A43: 320 | B43: =VLOOKUP($A43,'[1]MPK-2023'!$A$3:$F$104,2,0) -> SW - baseny,teren eventowy | D43: =SUMIF('[1]Zestawienie ilościowe i harmono'!$X$32:$X$50,[1]MPKi!$A42,'[1]Zestawienie ilościowe i harmono'!$Z$32:$Z$50) ->  | G43: =SUM(C43:E43) ->  | I43: =VLOOKUP(A43,'[1]Zestawienie ilościowe i harmono'!$X$32:$AJ$50,3,0) -> 112.57 | K43: =SUMIF('[1]Zestawienie ilościowe i harmono'!$X$32:$X$50,[1]MPKi!$A42,'[1]Zestawienie ilościowe i harmono'!$Z$32:$Z$50) ->  | L43: =IF('[1]Zestawienie ilościowe i harmono'!U42=[1]MPKi!C$7,[1]MPKi!J42,0) -> 0
A44: 321 | B44: =VLOOKUP($A44,'[1]MPK-2023'!$A$3:$F$104,2,0) -> SW - wypożyczalnia | D44: =SUMIF('[1]Zestawienie ilościowe i harmono'!$X$32:$X$50,[1]MPKi!$A43,'[1]Zestawienie ilościowe i harmono'!$Z$32:$Z$50) ->  | G44: =SUM(C44:E44) -> 
A45: 401 | B45: =VLOOKUP($A45,'[1]MPK-2023'!$A$3:$F$104,2,0) -> Zygmuntowskie Stadion i Biurowiec | C45: =SUMIF('[1]Zestawienie ilościowe i harmono'!$X$32:$X$50,[1]MPKi!$A44,'[1]Zestawienie ilościowe i harmono'!$Z$32:$Z$50) ->  | G45: =SUM(C45:F45) ->  | I45: =VLOOKUP(A45,'[1]Zestawienie ilościowe i harmono'!$X$32:$AJ$50,3,0) -> 1198.83 | J45: =G45-I45 ->  | K45: =SUMIF('[1]Zestawienie ilościowe i harmono'!$X$32:$X$50,[1]MPKi!$A44,'[1]Zestawienie ilościowe i harmono'!$Z$32:$Z$50) ->  | L45: =IF('[1]Zestawienie ilościowe i harmono'!U44=[1]MPKi!C$7,[1]MPKi!J44,0) -> 0
A46: 403 | B46: =VLOOKUP($A46,'[1]MPK-2023'!$A$3:$F$104,2,0) -> Piłsudskiego - sala gimnastyczna | C46: =SUMIF('[1]Zestawienie ilościowe i harmono'!$X$32:$X$50,[1]MPKi!$A45,'[1]Zestawienie ilościowe i harmono'!$Z$32:$Z$50) ->  | I46: =VLOOKUP(A46,'[1]Zestawienie ilościowe i harmono'!$X$32:$AJ$50,3,0) -> 694.37 | K46: =SUMIF('[1]Zestawienie ilościowe i harmono'!$X$32:$X$50,[1]MPKi!$A45,'[1]Zestawienie ilościowe i harmono'!$Z$32:$Z$50) ->  | L46: =IF('[1]Zestawienie ilościowe i harmono'!U45=[1]MPKi!C$7,[1]MPKi!J45,0) -> 0
A47: 405 | B47: =VLOOKUP($A47,'[1]MPK-2023'!$A$3:$F$104,2,0) -> Piłsudskiego - stadion lekkoatletyczny | C47: =SUMIF('[1]Zestawienie ilościowe i harmono'!$X$32:$X$50,[1]MPKi!$A46,'[1]Zestawienie ilościowe i harmono'!$Z$32:$Z$50) ->  | I47: =VLOOKUP(A47,'[1]Zestawienie ilościowe i harmono'!$X$32:$AJ$50,3,0) -> 287.94 | K47: =SUMIF('[1]Zestawienie ilościowe i harmono'!$X$32:$X$50,[1]MPKi!$A46,'[1]Zestawienie ilościowe i harmono'!$Z$32:$Z$50) ->  | L47: =IF('[1]Zestawienie ilościowe i harmono'!U46=[1]MPKi!C$7,[1]MPKi!J46,0) -> 0
A48: 410 | B48: =VLOOKUP($A48,'[1]MPK-2023'!$A$3:$F$104,2,0) -> Kresowa - stadion | C48: =SUMIF('[1]Zestawienie ilościowe i harmono'!$X$32:$X$50,[1]MPKi!$A47,'[1]Zestawienie ilościowe i harmono'!$Z$32:$Z$50) ->  | I48: =VLOOKUP(A48,'[1]Zestawienie ilościowe i harmono'!$X$32:$AJ$50,3,0) -> 228.25 | K48: =SUMIF('[1]Zestawienie ilościowe i harmono'!$X$32:$X$50,[1]MPKi!$A47,'[1]Zestawienie ilościowe i harmono'!$Z$32:$Z$50) ->  | L48: =IF('[1]Zestawienie ilościowe i harmono'!U47=[1]MPKi!C$7,[1]MPKi!J47,0) -> 0
A49: 421 | B49: =VLOOKUP($A49,'[1]MPK-2023'!$A$3:$F$104,2,0) -> Lublinianka - biura | E49: =SUMIF('[1]Zestawienie ilościowe i harmono'!$X$32:$X$50,[1]MPKi!$A48,'[1]Zestawienie ilościowe i harmono'!$Z$32:$Z$50) ->  | I49: =VLOOKUP(A49,'[1]Zestawienie ilościowe i harmono'!$X$32:$AJ$50,3,0) -> 259.34 | K49: =SUMIF('[1]Zestawienie ilościowe i harmono'!$X$32:$X$50,[1]MPKi!$A48,'[1]Zestawienie ilościowe i harmono'!$Z$32:$Z$50) ->  | L49: =IF('[1]Zestawienie ilościowe i harmono'!U48=[1]MPKi!C$7,[1]MPKi!J48,0) -> 0
A50: 590 | B50: =VLOOKUP($A50,'[1]MPK-2023'!$A$3:$F$104,2,0) -> Arena Lublin - wspólne | C50: =SUMIF('[1]Zestawienie ilościowe i harmono'!$X$32:$X$50,[1]MPKi!$A49,'[1]Zestawienie ilościowe i harmono'!$Z$32:$Z$50) ->  | I50: =VLOOKUP(A50,'[1]Zestawienie ilościowe i harmono'!$X$32:$AJ$50,3,0) -> 6901.66 | K50: =SUMIF('[1]Zestawienie ilościowe i harmono'!$X$32:$X$50,[1]MPKi!$A49,'[1]Zestawienie ilościowe i harmono'!$Z$32:$Z$50) ->  | L50: =IF('[1]Zestawienie ilościowe i harmono'!U49=[1]MPKi!C$7,[1]MPKi!J49,0) -> 0
A51: 910 | B51: =VLOOKUP($A51,'[1]MPK-2023'!$A$3:$F$104,2,0) -> Berlin | F51: =SUMIF('[1]Zestawienie ilościowe i harmono'!$X$32:$X$50,[1]MPKi!$A50,'[1]Zestawienie ilościowe i harmono'!$Z$32:$Z$50) ->  | I51: =VLOOKUP(A51,'[1]Zestawienie ilościowe i harmono'!$X$32:$AJ$50,3,0) -> 196.68 | K51: =SUMIF('[1]Zestawienie ilościowe i harmono'!$X$32:$X$50,[1]MPKi!$A50,'[1]Zestawienie ilościowe i harmono'!$Z$32:$Z$50) ->  | L51: =IF('[1]Zestawienie ilościowe i harmono'!U50=[1]MPKi!C$7,[1]MPKi!J50,0) -> 0
A52: =A32+1 -> 2025
A53: =A33 -> 101 | B53: =VLOOKUP($A53,'[1]MPK-2023'!$A$3:$F$104,2,0) -> Zygmuntowskie - hala im. Z. Niedzieli | E53: =SUMIF('[1]Zestawienie ilościowe i harmono'!$X$32:$X$50,[1]MPKi!$A52,'[1]Zestawienie ilościowe i harmono'!$Z$32:$Z$50) ->  | G53: =SUM(C53:F53) -> 
A54: 104 | B54: =VLOOKUP($A54,'[1]MPK-2023'!$A$3:$F$104,2,0) -> Zygmuntowskie - biura - pod wynajem | E54: =SUMIF('[1]Zestawienie ilościowe i harmono'!$X$32:$X$50,[1]MPKi!$A53,'[1]Zestawienie ilościowe i harmono'!$Z$32:$Z$50) -> 
A55: 110 | B55: =VLOOKUP($A55,'[1]MPK-2023'!$A$3:$F$104,2,0) -> Zygmuntowskie - pływalnia ( H2O) | D55: =SUMIF('[1]Zestawienie ilościowe i harmono'!$X$32:$X$50,[1]MPKi!$A54,'[1]Zestawienie ilościowe i harmono'!$Z$32:$Z$50) -> 
A56: 139 | B56: =VLOOKUP($A56,'[1]MPK-2023'!$A$3:$F$104,2,0) -> CSR Łabędzia - wspólne | D56: =SUMIF('[1]Zestawienie ilościowe i harmono'!$X$32:$X$50,[1]MPKi!$A55,'[1]Zestawienie ilościowe i harmono'!$Z$32:$Z$50) -> 
A57: 140 | B57: =VLOOKUP($A57,'[1]MPK-2023'!$A$3:$F$104,2,0) -> Icemania | E57: =SUMIF('[1]Zestawienie ilościowe i harmono'!$X$32:$X$50,[1]MPKi!$A56,'[1]Zestawienie ilościowe i harmono'!$Z$32:$Z$50) -> 
A58: 141 | B58: =VLOOKUP($A58,'[1]MPK-2023'!$A$3:$F$104,2,0) -> Miasteczko Ruchu Drogowego | E58: =SUMIF('[1]Zestawienie ilościowe i harmono'!$X$32:$X$50,[1]MPKi!$A57,'[1]Zestawienie ilościowe i harmono'!$Z$32:$Z$50) -> 
A59: 157 | B59: =VLOOKUP($A59,'[1]MPK-2023'!$A$3:$F$104,2,0) -> Aqua Lublin - wspólne | D59: =SUMIF('[1]Zestawienie ilościowe i harmono'!$X$32:$X$50,[1]MPKi!$A58,'[1]Zestawienie ilościowe i harmono'!$Z$32:$Z$50) -> 
A60: 201 | B60: =VLOOKUP($A60,'[1]MPK-2023'!$A$3:$F$104,2,0) -> Globus - hala | E60: =SUMIF('[1]Zestawienie ilościowe i harmono'!$X$32:$X$50,[1]MPKi!$A59,'[1]Zestawienie ilościowe i harmono'!$Z$32:$Z$50) -> 
A61: 290 | B61: =VLOOKUP($A61,'[1]MPK-2023'!$A$3:$F$104,2,0) -> Globus - wspólne | E61: =SUMIF('[1]Zestawienie ilościowe i harmono'!$X$32:$X$50,[1]MPKi!$A60,'[1]Zestawienie ilościowe i harmono'!$Z$32:$Z$50) -> 
A62: 301 | B62: =VLOOKUP($A62,'[1]MPK-2023'!$A$3:$F$104,2,0) -> Zalew - budynki | D62: =SUMIF('[1]Zestawienie ilościowe i harmono'!$X$32:$X$50,[1]MPKi!$A61,'[1]Zestawienie ilościowe i harmono'!$Z$32:$Z$50) ->  | G62: =SUM(C62:E62) -> 
A63: 320 | B63: =VLOOKUP($A63,'[1]MPK-2023'!$A$3:$F$104,2,0) -> SW - baseny,teren eventowy | D63: =SUMIF('[1]Zestawienie ilościowe i harmono'!$X$32:$X$50,[1]MPKi!$A62,'[1]Zestawienie ilościowe i harmono'!$Z$32:$Z$50) ->  | G63: =SUM(C63:E63) -> 
A64: 321 | B64: =VLOOKUP($A64,'[1]MPK-2023'!$A$3:$F$104,2,0) -> SW - wypożyczalnia | D64: =SUMIF('[1]Zestawienie ilościowe i harmono'!$X$32:$X$50,[1]MPKi!$A63,'[1]Zestawienie ilościowe i harmono'!$Z$32:$Z$50) ->  | G64: =SUM(C64:E64) -> 
A65: 401 | B65: =VLOOKUP($A65,'[1]MPK-2023'!$A$3:$F$104,2,0) -> Zygmuntowskie Stadion i Biurowiec | C65: =SUMIF('[1]Zestawienie ilościowe i harmono'!$X$32:$X$50,[1]MPKi!$A64,'[1]Zestawienie ilościowe i harmono'!$Z$32:$Z$50) ->  | G65: =SUM(C65:F65) -> 
A66: 403 | B66: =VLOOKUP($A66,'[1]MPK-2023'!$A$3:$F$104,2,0) -> Piłsudskiego - sala gimnastyczna | C66: =SUMIF('[1]Zestawienie ilościowe i harmono'!$X$32:$X$50,[1]MPKi!$A65,'[1]Zestawienie ilościowe i harmono'!$Z$32:$Z$50) -> 
A67: 405 | B67: =VLOOKUP($A67,'[1]MPK-2023'!$A$3:$F$104,2,0) -> Piłsudskiego - stadion lekkoatletyczny | C67: =SUMIF('[1]Zestawienie ilościowe i harmono'!$X$32:$X$50,[1]MPKi!$A66,'[1]Zestawienie ilościowe i harmono'!$Z$32:$Z$50) -> 
A68: 410 | B68: =VLOOKUP($A68,'[1]MPK-2023'!$A$3:$F$104,2,0) -> Kresowa - stadion | C68: =SUMIF('[1]Zestawienie ilościowe i harmono'!$X$32:$X$50,[1]MPKi!$A67,'[1]Zestawienie ilościowe i harmono'!$Z$32:$Z$50) -> 
A69: 421 | B69: =VLOOKUP($A69,'[1]MPK-2023'!$A$3:$F$104,2,0) -> Lublinianka - biura | E69: =SUMIF('[1]Zestawienie ilościowe i harmono'!$X$32:$X$50,[1]MPKi!$A68,'[1]Zestawienie ilościowe i harmono'!$Z$32:$Z$50) -> 
A70: 590 | B70: =VLOOKUP($A70,'[1]MPK-2023'!$A$3:$F$104,2,0) -> Arena Lublin - wspólne | C70: =SUMIF('[1]Zestawienie ilościowe i harmono'!$X$32:$X$50,[1]MPKi!$A69,'[1]Zestawienie ilościowe i harmono'!$Z$32:$Z$50) -> 
A71: 910 | B71: =VLOOKUP($A71,'[1]MPK-2023'!$A$3:$F$104,2,0) -> Berlin | F71: =SUMIF('[1]Zestawienie ilościowe i harmono'!$X$32:$X$50,[1]MPKi!$A70,'[1]Zestawienie ilościowe i harmono'!$Z$32:$Z$50) -> 

Sheet Zad__5 - Przep ECOL-UNICON
B1: ZZP.260.2.15.2023 | K1: Załącznik nr 3.5
A3: Wykonanie przeglądów serwisowych hydroforowych zestawów pompowych i przepompowni ścieków w obiektach MOSiR w latach 2022-2025
B5: Kosztorys ofertowy
A6: L.p. | B6: Nazwa / typ Układu / urządzenia | C6: Producent | D6: Lokalizacja | F6: Status urządzenia | G6: Harmonogram1) | H6: j.m. | I6: Ilość | J6: Częstotliwość usługi w okresie Umowy 2) | K6: Cena jednostkowa brutto | L6: Wartość brutto [zł]
I7: a | J7: b | K7: c | L7: a*b*c
A8: 1 | B8: 2 | C8: 3 | D8: 4 | E8: 5 | F8: 6 | G8: 7 | H8: 8 | I8: 9 | J8: 10 | K8: 11 | L8: 12
A9: 1. | B9: Przepompownia ścieków deszczowych Ecol-Unicon P1 Ø1500, H=3,78m, EPS DN100, Pompy: SLV.80.80.11.4.50 D, 1,5kW – 2 szt, sterownik MT-151 z panelem Astraada AS44TFT0422, ZP 164828 | C9: Grundfoss | D9: AQUA Lublin Al. Zygmuntowskie 4 | E9: Plac centralny (pomiędzy Hala Sprtową im. Niedzieli a A budynkiem AQUA Lublin | F9: po gwarancji | G9: 1 - grudzień 2023 2 - grudzień 2024 3 - grudzień 2025 | H9: kpl | I9: 1 | J9: 3
A10: 1a. | B10: + dostawa i wymiana sondy hydrostatycznej oraz zasilacz | G10: 1 - grudzień 2023 | H10: kpl | I10: 1 | J10: 1
A11: 1b. | B11: + wymiana ojelu w pompach | G11: 1 - grudzień 2023 2 - grudzień 2024 3 - grudzień 2025 | H11: kpl | I11: 1 | J11: 3
A12: 2. | B12: Przepompownia ścieków deszczowych Ecol-Unicon P2 Ø1500, H=6,83m, EPS DN150, Pompy SE1.80.100.22.4.50 D , 2,9/2,2kW – 2 szt, sterownik MT-151 z panelem Astraada AS44TFT0422, ZP 170245 | C12: Grundfoss | D12: AQUA Lublin Al. Zygmuntowskie 4 | E12: Plac manewrowy od strony MRD, strona zachodnia kompleksu. | F12: po gwarancji | G12: 1 - grudzień 2023 2 - grudzień 2024 3 - grudzień 2025 | H12: kpl | I12: 1 | J12: 3
A13: 2. | B13: + wymiana ojelu w pompach | G13: 1 - grudzień 2023 2 - grudzień 2024 3 - grudzień 2025 | H13: kpl | I13: 1 | J13: 3
J14: RAZEM BRUTTO:
B15: 1) TERMIN WYKONANIA USŁUGI:
B16: - maksymalny ustalony wg terminu poprzedniego serwisu – należy wykonać nie później niż podana data i wcześniej niż 14 dni przed, chyba że uzgodniono inaczej z Zamawiającym.
B17: 2) częstotliwość usług w zakresie umowy:
B18: - w tym przeglądy dodatkowe
I20: …....................................……..............................
I21: (Podpis i pieczęć imienna osób uprawnionych do składania oświadczeń woli Wykonawcy)
